[Event "Tatry Open 2018"]
[Site "Tatranska Lomnica"]
[Date "2018.10.05"]
[Round "7"]
[White "Hronik, Petr"]
[Black "Havelka, Ondrej"]
[Result "0-1"]
[ECO "D00"]
[WhiteElo "1899"]
[BlackElo "2150"]
[Annotator "NA RC"]
[PlyCount "52"]
[EventDate "2018.09.30"]
[EventType "swiss"]
[EventCountry "SVK"]
[SourceTitle "playchess.com"]
[Source "ChessBase"]
[SourceQuality "1"]
[TimeControl "40/5400+30:1800+30"]

1. d4 {[%emt 0:00:00]} d5 {[%emt 0:00:00]} 2. Bf4 {[%emt 0:00:00]} Nf6 {[%emt 0:00:00]} 3. e3 {[%emt 0:00:00]} c5 {[%emt 0:00:00]} 4. c3 {[%emt 0:00:00]} Nc6 {[%emt 0:00:00]} 5. Nf3 {[%emt 0:00:00]} Qb6 {[%emt 0:00:00]} 6. Qb3 {[%emt 0:00:04]} c4 {[%emt 0:00:00]} 7. Qxb6 {[%emt 0:00:06]} axb6 {[%emt 0:00:00]} 8. Nbd2 {[%emt 0:02:35]} b5 {[%emt 0:00:51]} 9. a3 {[%emt 0:02:00]} Bf5 {[%emt 0:01:20]} 10. Rc1 {[%emt 0:00:37]} h6 {[%emt 0:01:17]} 11. Be2 {[%emt 0:00:22]} e6 {[%emt 0:00:44]} 12. Bd1 {[%emt 0:01:32]} Nd7 {[%emt 0:02:27]} 13. Bc2 {[%emt 0:00:26]} Bxc2 {[%emt 0:02:07]} 14. Rxc2 {[%emt 0:00:21]} b4 {[%emt 0:09:32]} 15. O-O {[%emt 0:13:00]} b3 {[%emt 0:05:58]} 16. Rcc1 {[%emt 0:00:51]} g5 {[%emt 0:00:35]} 17. Bg3 {[%emt 0:00:40]} f5 {[%emt 0:00:13]} 18. Ne5 {[%emt 0:04:26]} Ncxe5 {[%emt 0:00:50]} 19. dxe5 {[%emt 0:01:00]} Nc5 {[%emt 0:01:17]} 20. Nf3 {[%emt 0:06:59]} Kf7 {[%emt 0:01:46]} 21. Ne1 {[%emt 0:06:50]} Na4 {[%emt 0:03:49]} 22. Rb1 {[%emt 0:01:35]} Bxa3 {[%emt 0:00:45]} 23. bxa3 {[%emt 0:01:14]} Nxc3 {[%emt 0:00:02]} 24. Rb2 {[%emt 0:02:05]} Rxa3 {[%emt 0:00:01]} 25. Nf3 {[%emt 0:01:21]} b5 {[%emt 0:00:57]} 26. Nd4 {[%emt 0:00:27]} Rha8 {[%emt 0:01:39]} 0-1

[Event "Tatry Open 2018"]
[Site "Tatranska Lomnica"]
[Date "2018.10.06"]
[Round "8"]
[White "Jablonicky, Martin"]
[Black "Chlpik, Martin"]
[Result "1-0"]
[ECO "A67"]
[WhiteElo "2346"]
[BlackElo "2119"]
[Annotator "NA"]
[PlyCount "51"]
[EventDate "2018.09.30"]
[EventType "swiss"]
[EventCountry "SVK"]
[SourceTitle "playchess.com"]
[Source "ChessBase"]
[SourceQuality "1"]
[TimeControl "40/5400+30:1800+30"]

1. d4 {[%emt 0:00:00]} Nf6 {[%emt 0:09:40]} 2. c4 {[%emt 0:00:00]} c5 {[%emt 0:00:03]} 3. d5 {[%emt 0:00:00]} e6 {[%emt 0:00:45]} 4. Nc3 {[%emt 0:00:20]} exd5 {[%emt 0:00:29]} 5. cxd5 {[%emt 0:00:04]} d6 {[%emt 0:00:05]} 6. e4 {[%emt 0:00:05]} g6 {[%emt 0:00:02]} 7. f4 {[%emt 0:00:05]} Bg7 {[%emt 0:00:03]} 8. Bb5+ {[%emt 0:00:04]} Nfd7 {[%emt 0:00:05]} 9. Be2 {[%emt 0:00:06]} O-O {[%emt 0:01:22]} 10. Nf3 {[%emt 0:00:01]} Na6 {[%emt 0:07:06]} 11. O-O {[%emt 0:00:34]} Nc7 {[%emt 0:05:49]} 12. f5 {[%emt 0:02:26] A67: Modern Benoni: Taimanov Variation} (12. a4 a6 13. Kh1 Rb8 14. f5 b5 15. Bg5 Qe8 16. e5 Nxe5 17. f6 Bh8 18. Qd2 Ng4 19. axb5 axb5 20. Bd3 Nxf6 {0-1 (44) Ivanisevic,I (2662)-Donchenko,A (2567) Biel 2015}) 12... Rb8 $146 {[%emt 0:03:24]} ({Predecessor:} 12... gxf5 13. exf5 Ne5 14. Ng5 f6 15. Ne6 Bxe6 16. fxe6 f5 17. Bd3 Ng4 18. Bxf5 Bd4+ 19. Kh1 Qh4 20. Bxg4 Rxf1+ 21. Qxf1 Qxg4 {1-0 (28) Tikkanen,H (2437)-Hedman,E (2363) Vaxjo 2008}) 13. Bf4 {[%emt 0:02:15]} Qe7 {[%emt 0:00:49]} 14. Qe1 {[%emt 0:06:36]} b5 {[%emt 0:05:11]} 15. Qg3 {[%emt 0:00:15]} Rb6 {[%emt 0:00:03]} 16. a4 {[%emt 0:05:38]} Bxc3 {[%emt 0:00:36]} 17. bxc3 {[%emt 0:00:01]} Qxe4 {[%emt 0:00:17]} 18. Bxd6 {[%emt 0:01:24]} Nxd5 {[%emt 0:03:13]} 19. Bxf8 {[%emt 0:00:12]} Nxc3 {[%emt 0:00:07]} 20. Bxb5 $18 {[%emt 0:05:45]} Rxb5 {[%emt 0:21:01]} 21. Rae1 {[%emt 0:00:13]} Ne2+ {[%emt 0:02:39]} 22. Rxe2 {[%emt 0:00:04]} Qxe2 {[%emt 0:00:08]} 23. Bh6 {[%emt 0:00:28]} Qxf1+ {[%emt 0:03:58]} 24. Kxf1 {[%emt 0:00:09]} Rb1+ {[%emt 0:00:05]} 25. Ne1 {[%emt 0:00:17]} Nf6 {[%emt 0:00:32]} 26. Qd3 {[%emt 0:00:24]} 1-0

[Event "Tatry Open 2018"]
[Site "Tatranska Lomnica"]
[Date "2018.10.06"]
[Round "8"]
[White "Parligras, Cosmin"]
[Black "Zylka, Stanislaw"]
[Result "1/2-1/2"]
[ECO "B22"]
[WhiteElo "2203"]
[BlackElo "2327"]
[Annotator "NA"]
[PlyCount "46"]
[EventDate "2018.09.30"]
[EventType "swiss"]
[EventCountry "SVK"]
[SourceTitle "playchess.com"]
[Source "ChessBase"]
[SourceQuality "1"]
[TimeControl "40/5400+30:1800+30"]

1. e4 {[%emt 0:03:49]} c5 {[%emt 0:00:00]} 2. c3 {[%emt 0:00:05]} d5 {[%emt 0:00:00]} 3. exd5 {[%emt 0:00:04]} Qxd5 {[%emt 0:00:02]} 4. d4 {[%emt 0:00:06]} Nf6 {[%emt 0:00:13]} 5. Nf3 {[%emt 0:00:12]} e6 {[%emt 0:00:10]} 6. Na3 {[%emt 0:00:56]} Nc6 {[%emt 0:00:23]} 7. Nb5 {[%emt 0:01:21]} Qd8 {[%emt 0:02:42]} 8. dxc5 {[%emt 0:00:08]} Bxc5 {[%emt 0:01:01]} 9. Qxd8+ {[%emt 0:00:06]} Kxd8 {[%emt 0:00:11]} 10. Bf4 {[%emt 0:00:20]} Nd5 {[%emt 0:00:56]} 11. Rd1 {[%emt 0:01:06] B22: Sizilianisch (Alapin 2.c3)} (11. Bg3 Ke7 12. Bc4 a6 13. Nbd4 Nxd4 14. Nxd4 Bxd4 15. cxd4 Bd7 16. Bxd5 exd5 17. Kd2 Rac8 18. Rac1 Rxc1 19. Rxc1 {½-½ (30) Ni,H (2637)-Nguyen,N (2662) Ho Chi Minh City 2012}) 11... Ke7 {[%emt 0:00:29]} 12. Bg3 {[%emt 0:00:08]} a6 {[%emt 0:00:43]} 13. Nbd4 {[%emt 0:00:08]} Nxd4 {[%emt 0:02:00]} 14. Nxd4 {[%emt 0:00:06]} Rd8 {[%emt 0:04:32]} 15. Be2 {[%emt 0:09:18]} Nb6 $146 {[%emt 0:15:32]} ({Vorgänger:} 15... a5) 16. Nb3 {[%emt 0:04:56]} Rxd1+ {[%emt 0:00:31]} 17. Kxd1 {[%emt 0:00:09]} Bd6 {[%emt 0:00:21]} 18. Bxd6+ {[%emt 0:00:32]} Kxd6 {[%emt 0:00:08]} 19. Kc1 $11 {[%emt 0:09:55]} Kc7 {[%emt 0:11:20]} 20. Nc5 {[%emt 0:02:29]} Bd7 {[%emt 0:03:53]} 21. Nxd7 {[%emt 0:02:35]} Nxd7 {[%emt 0:00:11]} 22. Rd1 {[%emt 0:01:06]} Ne5 {[%emt 0:00:24]} 23. Kc2 {[%emt 0:00:31]} Rd8 {[%emt 0:01:36]} 1/2-1/2

[Event "Tatry Open 2018"]
[Site "Tatranska Lomnica"]
[Date "2018.10.06"]
[Round "8"]
[White "Zatko, Gregor"]
[Black "Malik, Jan"]
[Result "0-1"]
[ECO "D00"]
[WhiteElo "2194"]
[BlackElo "2300"]
[Annotator "NA RC"]
[PlyCount "72"]
[EventDate "2018.09.30"]
[EventType "swiss"]
[EventCountry "SVK"]
[SourceTitle "playchess.com"]
[Source "ChessBase"]
[SourceQuality "1"]
[TimeControl "40/5400+30:1800+30"]

1. d4 {[%emt 0:00:00]} d5 {[%emt 0:00:00]} 2. Bf4 {[%emt 0:00:00]} Nf6 {[%emt 0:00:00]} 3. e3 {[%emt 0:00:00]} c5 {[%emt 0:00:09]} 4. c3 {[%emt 0:00:00]} Nc6 {[%emt 0:00:17]} 5. Nd2 {[%emt 0:00:00]} Bg4 {[%emt 0:02:05]} 6. f3 {[%emt 0:01:47]} Bf5 {[%emt 0:01:23]} 7. g4 {[%emt 0:00:48]} Bg6 {[%emt 0:02:00]} 8. h4 {[%emt 0:02:44]} h6 {[%emt 0:01:37]} 9. Qb3 {[%emt 0:06:28]} Qb6 {[%emt 0:00:43]} 10. dxc5 {[%emt 0:03:56]} Qxb3 {[%emt 0:00:22]} 11. Nxb3 {[%emt 0:00:22]} e5 {[%emt 0:03:14]} 12. Bg3 {[%emt 0:00:40]} a5 {[%emt 0:03:35]} 13. Bb5 {[%emt 0:02:50]} a4 {[%emt 0:00:40]} 14. Nd2 {[%emt 0:01:44]} Bxc5 {[%emt 0:03:52]} 15. Bxe5 {[%emt 0:01:41]} Bxe3 {[%emt 0:00:20]} 16. Ke2 {[%emt 0:05:01]} Bc5 {[%emt 0:02:08]} 17. b4 {[%emt 0:08:57]} axb3 {[%emt 0:01:06]} 18. Nxb3 {[%emt 0:00:11]} Ba3 {[%emt 0:05:23]} 19. Re1 {[%emt 0:00:49]} O-O $17 {[%emt 0:00:31]} 20. Bxf6 {[%emt 0:06:21]} gxf6 {[%emt 0:00:20]} 21. Kf2 {[%emt 0:03:29]} Bb2 {[%emt 0:03:36]} 22. a4 {[%emt 0:00:21]} Bxc3 {[%emt 0:00:31]} 23. Rc1 {[%emt 0:00:32]} Bb2 {[%emt 0:01:29]} 24. Re1 {[%emt 0:01:18]} Ne5 {[%emt 0:03:27]} 25. Kg3 {[%emt 0:01:48]} Rfc8 {[%emt 0:02:59]} 26. Ne2 {[%emt 0:04:04]} Nd3 {[%emt 0:01:30]} 27. Rd1 {[%emt 0:01:42]} Be5+ {[%emt 0:00:48]} 28. Kg2 {[%emt 0:04:21]} Rc2 {[%emt 0:06:56]} 29. Kf1 {[%emt 0:00:58]} Nb2 {[%emt 0:04:12]} 30. Rd2 {[%emt 0:03:20]} Nc4 {[%emt 0:01:08]} 31. Rxc2 {[%emt 0:00:33]} Bxc2 {[%emt 0:00:14]} 32. Nc5 {[%emt 0:00:46]} b6 {[%emt 0:04:03]} 33. Nd7 {[%emt 0:00:38]} Bxa4 {[%emt 0:00:20]} 34. Bxc4 {[%emt 0:00:18]} Bxd7 {[%emt 0:00:11]} 35. Bxd5 {[%emt 0:00:11]} Ra5 {[%emt 0:00:24]} 36. Be4 {[%emt 0:00:26]} Bb5 {[%emt 0:00:36]} 0-1

[Event "Tatry Open 2018"]
[Site "Tatranska Lomnica"]
[Date "2018.10.06"]
[Round "8"]
[White "Steiner, Bruno"]
[Black "Lys, Josef"]
[Result "1-0"]
[ECO "A04"]
[WhiteElo "2075"]
[BlackElo "2086"]
[Annotator "NA RC"]
[PlyCount "145"]
[EventDate "2018.09.30"]
[EventType "swiss"]
[EventCountry "SVK"]
[SourceTitle "playchess.com"]
[Source "ChessBase"]
[SourceQuality "1"]
[TimeControl "40/5400+30:1800+30"]

1. Nf3 {[%emt 0:11:56]} c5 {[%emt 0:01:36]} 2. e3 {[%emt 0:00:24]} g6 {[%emt 0:01:14]} 3. d4 {[%emt 0:00:16]} Bg7 {[%emt 0:00:39]} 4. dxc5 {[%emt 0:07:10]} Qa5+ {[%emt 0:00:09]} 5. Nbd2 {[%emt 0:00:55]} Nf6 {[%emt 0:00:42]} 6. a3 {[%emt 0:01:52] A48: 1 d4 Nf6 2 Nf3 g6: Torre, London and Colle Systems} Nc6 {[%emt 0:02:00]} (6... Qxc5 7. b4 Qc7 8. Bb2 O-O 9. c4 b6 10. Be2 Bb7 11. O-O d6 12. Qb3 Nbd7 13. h3 Rac8 14. Rfd1 Rfd8 15. Rac1 Qb8 16. Qa2 e5 17. a4 h6 18. a5 Nf8 19. axb6 axb6 20. Ra1 {½-½ (57) Mirzoev,A (2510)-Perez Candelario,M (2611) Linares 2018}) 7. Rb1 {[%emt 0:07:36]} Qxc5 {[%emt 0:04:27]} 8. b4 {[%emt 0:00:10]} Qb6 {[%emt 0:00:22]} 9. c4 {[%emt 0:03:07]} d6 $146 {[%emt 0:01:55]} ({Predecessor:} 9... O-O 10. Be2 d5 11. O-O Bf5 12. Rb3 Rfd8 13. c5 Qc7 {0-1 (51) Sevastianov,V-Kazantsev,V Samara 2001}) 10. Bd3 {[%emt 0:01:10]} a5 {[%emt 0:01:21]} 11. O-O {[%emt 0:02:48]} axb4 {[%emt 0:00:35]} 12. axb4 {[%emt 0:00:26]} O-O {[%emt 0:00:18]} 13. Bb2 {[%emt 0:01:30]} Be6 {[%emt 0:02:28]} 14. Nd4 {[%emt 0:11:10]} Bg4 {[%emt 0:07:41]} 15. Be2 {[%emt 0:00:48]} Bxe2 {[%emt 0:01:13]} 16. Qxe2 {[%emt 0:00:35]} Ra2 {[%emt 0:00:45]} 17. Qd3 {[%emt 0:20:12]} Rfa8 {[%emt 0:37:26]} 18. Qb3 {[%emt 0:02:43]} Nd7 {[%emt 0:03:33]} 19. Nc2 {[%emt 0:04:54]} Qa7 {[%emt 0:06:53]} 20. Bxg7 {[%emt 0:02:19]} Kxg7 {[%emt 0:00:12]} 21. Rb2 {[%emt 0:01:16]} f6 {[%emt 0:01:28]} 22. Rxa2 {[%emt 0:01:01]} Qxa2 {[%emt 0:00:33]} 23. Qc3 {[%emt 0:00:13]} Qa7 {[%emt 0:00:29]} 24. Ra1 {[%emt 0:00:38]} Qb8 {[%emt 0:00:03]} 25. h3 {[%emt 0:00:50]} Ra7 {[%emt 0:02:23]} 26. g3 {[%emt 0:01:58]} Qa8 {[%emt 0:00:08]} 27. Rxa7 {[%emt 0:00:10]} Qxa7 {[%emt 0:00:11]} 28. Qb3 {[%emt 0:00:31]} Nce5 {[%emt 0:02:20]} 29. Kg2 {[%emt 0:00:26]} Qb6 {[%emt 0:01:15]} 30. Nd4 {[%emt 0:01:17]} Nf8 {[%emt 0:00:14]} 31. Qc3 {[%emt 0:00:48]} Qa6 {[%emt 0:01:26]} 32. f4 {[%emt 0:01:46]} Nc6 {[%emt 0:00:21]} 33. Nc2 {[%emt 0:01:44]} Nd7 {[%emt 0:03:36]} 34. Qb3 {[%emt 0:00:36]} Qb6 {[%emt 0:02:55]} 35. Kf2 {[%emt 0:01:14]} Ndb8 {[%emt 0:02:37]} 36. Ne4 {[%emt 0:02:35]} Na6 {[%emt 0:01:55]} 37. b5 {[%emt 0:01:06]} Nd8 {[%emt 0:03:36]} 38. Qa3 {[%emt 0:01:41]} Nc7 {[%emt 0:00:24]} 39. Nd4 {[%emt 0:00:51]} Nde6 {[%emt 0:02:00]} 40. Nxe6+ {[%emt 0:01:02]} Nxe6 {[%emt 0:00:09]} 41. Qa2 {[%emt 0:31:28]} h6 {[%emt 0:31:10]} 42. h4 {[%emt 0:01:16]} f5 {[%emt 0:03:54]} 43. Nc3 {[%emt 0:00:50]} Nc5 {[%emt 0:00:00]} 44. Kf3 {[%emt 0:00:00]} Qc7 {[%emt 0:00:00]} 45. Qa1 {[%emt 0:00:00]} Kh7 {[%emt 0:00:00]} 46. Nd5 {[%emt 0:00:00]} Qd7 {[%emt 0:00:00]} 47. Qd4 {[%emt 0:00:00]} Qe6 {[%emt 0:00:00]} 48. Nc3 {[%emt 0:00:18]} Kg8 {[%emt 0:00:00]} 49. Qd5 {[%emt 0:01:44]} Kf7 {[%emt 0:00:00]} 50. e4 {[%emt 0:00:51]} h5 {[%emt 0:00:00]} 51. e5 {[%emt 0:01:45]} Qxd5+ {[%emt 0:00:41]} 52. cxd5 {[%emt 0:01:42]} dxe5 {[%emt 0:01:19]} 53. fxe5 {[%emt 0:00:09]} Nd3 {[%emt 0:00:21]} 54. e6+ {[%emt 0:00:40]} Kf6 {[%emt 0:00:07]} 55. Ke3 {[%emt 0:00:06]} Nc5 {[%emt 0:01:50]} 56. Kf4 {[%emt 0:02:39]} Nd3+ {[%emt 0:01:08]} 57. Ke3 {[%emt 0:00:02]} Nb2 {[%emt 0:00:56]} 58. Kd4 {[%emt 0:00:33]} b6 {[%emt 0:00:38]} 59. Nb1 {[%emt 0:00:22]} Na4 {[%emt 0:00:58]} 60. Nd2 {[%emt 0:00:15]} Nc5 {[%emt 0:02:07]} 61. Nc4 {[%emt 0:00:20]} Na4 {[%emt 0:00:15]} 62. Ne5 {[%emt 0:00:13]} Kg7 {[%emt 0:00:25]} 63. Nd7 {[%emt 0:00:08]} Kg8 {[%emt 0:00:28]} 64. Ke5 {[%emt 0:01:56]} Nc3 {[%emt 0:00:26]} 65. d6 {[%emt 0:00:56]} exd6+ {[%emt 0:00:43]} 66. Kf6 {[%emt 0:00:04]} Nd5+ {[%emt 0:00:31]} 67. Kxg6 {[%emt 0:00:03]} f4 {[%emt 0:00:36]} 68. gxf4 {[%emt 0:00:28]} Nxf4+ {[%emt 0:00:12]} 69. Kf5 {[%emt 0:00:13]} Nd5 {[%emt 0:01:32]} 70. Nf6+ {[%emt 0:01:01]} Nxf6 {[%emt 0:00:12]} 71. Kxf6 {[%emt 0:00:03]} Kf8 {[%emt 0:00:06]} 72. e7+ {[%emt 0:00:03]} Ke8 {[%emt 0:00:12]} 73. Ke6 {[%emt 0:00:02]} 1-0

[Event "Tatry Open 2018"]
[Site "Tatranska Lomnica"]
[Date "2018.10.07"]
[Round "9"]
[White "Vojta, Tomas"]
[Black "Weber, Samuel"]
[Result "1/2-1/2"]
[ECO "A45"]
[WhiteElo "2354"]
[BlackElo "2141"]
[Annotator "NA"]
[PlyCount "153"]
[EventDate "2018.09.30"]
[EventType "swiss"]
[EventCountry "SVK"]
[SourceTitle "playchess.com"]
[Source "ChessBase"]
[SourceQuality "1"]
[TimeControl "40/5400+30:1800+30"]

{[%evp 8,108,16,-15,-1,-4,0,-11,-3,-8,-1,0,-2,-25,1,0,0,-2,6,0,48,47,70,41,32767,57,32767,66,70,77,79,70,88,92,89,81,85,32767,75,32767,32767,75,88,32767,79,95,83,83,79,83,98,89,32767,81,32767,32767,89,57,116,32767,105,120,32767,108,106,109,32767,119,118,0,114,54,110,103,112,103,110,143,32767,32767,32767,150,125,134,128,109,32767,109,32767,30,32767,32767,46,32767,68,14,55,95,175,132,351,427,348]} 1. d4 {[%emt 0:00:00]} Nf6 {[%emt 0:00:00]} 2. Bf4 {[%emt 0:00:00]} d5 {[%emt 0:00:04]} 3. e3 {[%emt 0:00:31]} e6 {[%emt 0:00:10]} 4. Nd2 {[%emt 0:02:12]} Bd6 {[%emt 0:00:31]} 5. Bg3 {[%emt 0:00:35]} O-O {[%emt 0:01:36]} 6. Bd3 {[%emt 0:01:29]} b6 {[%emt 0:01:57]} 7. Ngf3 {[%emt 0:01:57]} Bb7 {[%emt 0:01:40] D02: 1 d4 d5 2 Nf3 sidelines, including 2...Nf6 3 g3 and 2...Nf6 3 Bf4} 8. c3 {[%emt 0:03:28] LiveBook: 31 Games} Ne4 {[%emt 0:03:45]} 9. Bxd6 {[%emt 0:06:19]} (9. Qc2 f5 10. Bxd6 cxd6 11. O-O Nd7 12. c4 Ndf6 13. cxd5 Bxd5 14. Rac1 Qe8 {½-½ (57) Le,Q (2739)-Anand,V (2783) Saint Louis 2017}) 9... cxd6 {[%emt 0:05:01]} 10. c4 {[%emt 0:02:04]} f5 {[%emt 0:06:04]} 11. Rc1 $146 {[%emt 0:03:26]} ({Predecessor:} 11. cxd5 Bxd5 12. Bc4 Bxc4 13. Nxc4 Nd7 {½-½ (13) Nyzhnyk,I (2598)-Swiercz,D (2657) Las Vegas 2018}) 11... Nd7 {[%emt 0:02:50]} 12. O-O {[%emt 0:02:35]} Ndf6 {[%emt 0:05:35]} 13. cxd5 {[%emt 0:02:25]} exd5 {[%emt 0:05:38]} 14. Nb1 {[%emt 0:07:49]} Qd7 {[%emt 0:04:30]} 15. Nfd2 {[%emt 0:03:18]} Rac8 {[%emt 0:04:41]} 16. Rxc8 {[%emt 0:03:04]} Rxc8 {[%emt 0:05:13]} 17. f3 {[%emt 0:00:23]} Nxd2 {[%emt 0:01:25]} 18. Qxd2 {[%emt 0:03:31]} g6 {[%emt 0:02:45]} 19. Rc1 {[%emt 0:02:59]} Rxc1+ {[%emt 0:03:27]} 20. Qxc1 {[%emt 0:00:02]} Qc8 {[%emt 0:01:21]} 21. Qxc8+ {[%emt 0:02:51]} Bxc8 {[%emt 0:00:25]} 22. Nc3 {[%emt 0:00:11]} a6 {[%emt 0:02:14]} 23. b4 {[%emt 0:03:55]} Bb7 {[%emt 0:02:02]} 24. Bc2 {[%emt 0:03:08]} Kf8 {[%emt 0:01:20]} 25. Kf2 {[%emt 0:00:08]} Ne8 {[%emt 0:06:13]} 26. h3 {[%emt 0:05:27]} Ke7 {[%emt 0:03:26]} 27. Na4 {[%emt 0:01:23]} b5 {[%emt 0:00:11]} 28. Nc3 {[%emt 0:00:02]} Nc7 {[%emt 0:00:41]} 29. Bb3 {[%emt 0:00:26]} Kf6 {[%emt 0:01:11]} 30. g4 {[%emt 0:01:28]} Bc6 {[%emt 0:02:15]} 31. Kg3 {[%emt 0:00:38]} Bb7 {[%emt 0:01:16]} 32. gxf5 {[%emt 0:04:43]} gxf5 {[%emt 0:01:08]} (32... Kxf5 $14 33. h4 Bc6) 33. Kh4 {[%emt 0:04:15]} Kg6 {[%emt 0:01:33]} 34. Ne2 {[%emt 0:00:55]} Ne6 {[%emt 0:00:45]} 35. Kg3 {[%emt 0:01:00]} Kg5 {[%emt 0:00:27]} 36. h4+ {[%emt 0:01:24]} Kf6 {[%emt 0:00:25]} 37. Nf4 {[%emt 0:00:23]} (37. a4 $16) 37... Nc7 {[%emt 0:00:32]} 38. Ne2 {[%emt 0:05:39]} (38. Kg2 $16) 38... Ne6 {[%emt 0:00:50]} 39. Nc3 {[%emt 0:01:36]} Nc7 {[%emt 0:00:06]} ({Better is} 39... f4+ $1 $14 40. Kf2 (40. exf4 Nxd4 41. Nxd5+ Bxd5 $11) 40... fxe3+ 41. Kxe3 Nc7) 40. a4 {[%emt 0:00:13]} Ba8 {[%emt 0:01:20]} 41. a5 {[%emt 0:30:35]} Bb7 {[%emt 0:30:05]} 42. Ne2 {[%emt 0:02:00]} Ne6 {[%emt 0:00:19]} 43. Bc2 {[%emt 0:01:21]} Bc6 {[%emt 0:01:26]} 44. Nf4 {[%emt 0:00:39]} Nc7 {[%emt 0:00:40]} 45. Kf2 {[%emt 0:02:26]} Bb7 {[%emt 0:15:03]} 46. Nh5+ {[%emt 0:02:06]} Kg6 {[%emt 0:00:49] [#]} 47. Ng3 $1 {[%emt 0:00:23]} Bc8 {[%emt 0:00:26]} 48. e4 (48. Bd3 $16) 48... fxe4 {[%emt 0:02:08]} 49. fxe4 {[%emt 0:03:26]} Kf6 {[%emt 0:03:16]} 50. Ke3 {[%emt 0:00:30]} h6 {[%emt 0:01:05]} 51. Bb3 {[%emt 0:04:48]} (51. Nh5+ $16 Ke7 52. e5) 51... Be6 {[%emt 0:00:59] [#]} 52. Nh5+ $1 {[%emt 0:02:15]} Kf7 {[%emt 0:01:21]} 53. Nf4 {[%emt 0:00:43]} Kf6 {[%emt 0:00:00]} (53... dxe4 {keeps fighting.} 54. Nxe6 Nxe6) 54. Nxe6 $18 {[%emt 0:00:00]} Kxe6 {[%emt 0:00:00]} 55. Kf4 {[%emt 0:00:00]} Kf6 {[%emt 0:00:00]} 56. exd5 {[%emt 0:00:00]} Kg6 {[%emt 0:00:00]} 57. Bc2+ {[%emt 0:00:00]} Kf6 {[%emt 0:00:00]} 58. Be4 {[%emt 0:00:00]} Ne8 {[%emt 0:00:00]} 59. Bh7 {[%emt 0:00:00]} Nc7 {[%emt 0:00:00]} 60. Ke4 {[%emt 0:00:00]} Ne8 {[%emt 0:00:00]} 61. Bf5 {[%emt 0:00:00]} Nc7 {[%emt 0:00:09]} 62. Bc8 {[%emt 0:00:34]} Kg6 {[%emt 0:00:07]} 63. Kf3 {[%emt 0:01:26]} h5 {[%emt 0:02:57]} 64. Ke4 {[%emt 0:00:05]} Kf6 {[%emt 0:00:23]} 65. Bb7 {[%emt 0:00:54]} Kg6 {[%emt 0:00:13]} 66. Bc6 {[%emt 0:03:06]} Kf6 {[%emt 0:00:06]} 67. Bd7 {[%emt 0:00:24]} Kg6 {[%emt 0:00:14]} 68. Bh3 {[%emt 0:00:56]} Kf6 {[%emt 0:00:31]} 69. Bf1 {[%emt 0:00:40]} Kg6 {[%emt 0:01:01]} 70. Be2 {[%emt 0:00:05]} Ne8 {[%emt 0:00:16]} 71. Kf4 {[%emt 0:01:32]} Nc7 {[%emt 0:00:16]} 72. Bf3 {[%emt 0:00:05]} Ne8 {[%emt 0:00:11]} 73. Be4+ {[%emt 0:01:01]} Kf6 {[%emt 0:00:01]} 74. Bf5 {[%emt 0:00:33]} Nc7 {[%emt 0:00:05]} 75. Ke4 {[%emt 0:00:38]} Ne8 {[%emt 0:00:20]} 76. Bc8 {[%emt 0:02:23]} Nc7 {[%emt 0:00:04]} 77. Bb7 {Ke5+} 1/2-1/2

[Event "Tatry Open 2018"]
[Site "Tatranska Lomnica"]
[Date "2018.10.07"]
[Round "9"]
[White "Vyskocil, Neklan"]
[Black "Parligras, Cosmin"]
[Result "1/2-1/2"]
[ECO "A06"]
[WhiteElo "2315"]
[BlackElo "2203"]
[Annotator "ChessBase"]
[PlyCount "71"]
[EventDate "2018.09.30"]
[EventType "swiss"]
[EventCountry "SVK"]
[SourceTitle "playchess.com"]
[Source "ChessBase"]
[SourceQuality "1"]
[TimeControl "40/5400+30:1800+30"]

1. Nf3 {[%emt 0:08:41]} d5 {[%emt 0:00:00]} 2. g3 {[%emt 0:00:35]} Bg4 {[%emt 0:01:34]} 3. Bg2 {[%emt 0:00:15]} c6 {[%emt 0:01:00]} 4. b3 {[%emt 0:00:30]} Bxf3 {[%emt 0:00:40]} 5. exf3 {[%emt 0:01:01]} Nf6 {[%emt 0:01:27]} 6. f4 {[%emt 0:01:11]} e6 {[%emt 0:00:51]} 7. O-O {[%emt 0:00:56]} Be7 {[%emt 0:01:14]} 8. d4 {[%emt 0:01:19]} O-O {[%emt 0:00:18]} 9. c4 {[%emt 0:00:49]} Nbd7 {[%emt 0:05:37]} 10. Nd2 {[%emt 0:01:03]} c5 {[%emt 0:02:48]} 11. Bb2 {[%emt 0:01:36]} Rc8 {[%emt 0:06:55]} 12. Qe2 {[%emt 0:09:20]} Re8 {[%emt 0:00:34]} 13. Rfd1 {[%emt 0:01:39]} Qb6 {[%emt 0:03:34]} 14. Qd3 {[%emt 0:07:54]} cxd4 {[%emt 0:06:30]} 15. cxd5 {[%emt 0:03:00]} exd5 {[%emt 0:05:42]} 16. Bxd4 {[%emt 0:07:05]} Bc5 {[%emt 0:02:13]} 17. Nf3 {[%emt 0:03:12]} Bxd4 {[%emt 0:00:27]} 18. Nxd4 {[%emt 0:01:40]} Nc5 {[%emt 0:01:49]} 19. Qb5 {[%emt 0:04:52]} Nce4 {[%emt 0:00:46]} 20. Qxb6 {[%emt 0:12:07]} axb6 {[%emt 0:00:38]} 21. Re1 {[%emt 0:05:19]} Kf8 {[%emt 0:05:15]} 22. h3 {[%emt 0:04:05]} Nc3 {[%emt 0:02:41]} 23. a4 {[%emt 0:02:56]} Rxe1+ {[%emt 0:08:15]} 24. Rxe1 {[%emt 0:00:03]} Nfe4 {[%emt 0:08:49]} 25. Bf3 {[%emt 0:02:49]} g6 {[%emt 0:05:57]} 26. Kg2 {[%emt 0:02:44]} Rc5 {[%emt 0:03:45]} 27. g4 {[%emt 0:03:04]} Nd2 {[%emt 0:00:57]} 28. f5 {[%emt 0:04:20]} b5 {[%emt 0:11:26]} 29. fxg6 {[%emt 0:02:30]} hxg6 {[%emt 0:00:07]} 30. axb5 {[%emt 0:02:10]} Nxb5 {[%emt 0:02:15]} 31. Rd1 {[%emt 0:02:05]} Nxd4 {[%emt 0:00:59]} 32. Rxd2 {[%emt 0:00:04]} Nxf3 {[%emt 0:00:34]} 33. Kxf3 {[%emt 0:00:10]} Rc3+ {[%emt 0:00:05]} 34. Kg2 {[%emt 0:00:28]} Rxb3 {[%emt 0:00:06]} 35. Rxd5 {[%emt 0:00:15]} b5 {[%emt 0:00:19]} 36. h4 {[%emt 0:01:07]} 1/2-1/2